{"text_format":"1","workbook":"xlsx","n_sheets":1,"sheets":["Post Event Submission Form"],"not_rendered":{"charts":0,"images":1,"macros":0,"external_links":0,"defined_names":1,"comments":0,"pivot_tables":0},"unopened":[],"bounds":{"document_bytes":16777216,"sheet_cells":100000,"rows_first":2000,"rows_last":500,"rows_between":2000,"halvings":0,"cell_chars":16384,"cell_head_chars":4096},"cells_cut":0,"cells_raw":0,"read":"whole","date_system":"1900"}

{"sheet":"Post Event Submission Form","index":0,"n_rows":62,"n_cols":14,"rows_kept":62,"cut":false,"hidden":false,"merged":[[45,2,45,4],[37,4,37,5],[42,3,42,8],[35,9,35,10],[32,1,40,3],[30,1,30,8],[32,4,33,5],[34,4,34,5],[35,6,35,7],[36,4,36,5],[34,6,34,7],[40,6,40,7],[36,9,36,10],[36,6,36,7],[39,4,39,5],[40,4,40,5],[45,5,45,8],[49,9,49,10],[25,5,25,6],[32,8,33,8],[45,9,45,10],[37,6,37,7],[38,6,38,7],[39,9,39,10],[40,9,40,10],[37,9,37,10],[42,9,42,10],[38,4,38,5],[39,6,39,7],[38,9,38,10],[35,4,35,5],[34,9,34,10],[1,4,1,5],[2,4,2,5],[1,6,1,7],[2,6,2,7],[5,2,5,9],[0,1,2,3],[0,4,0,7],[61,3,61,8],[59,3,59,7],[48,9,48,10],[47,9,47,10],[55,8,55,10],[57,2,57,7],[61,9,61,10],[57,9,57,10],[47,5,47,8],[51,9,51,10],[53,6,53,8],[53,9,53,10],[51,6,51,8],[49,6,49,8],[59,9,59,10],[8,2,8,3],[4,1,4,11],[8,6,8,10],[7,6,7,7],[7,2,7,5],[7,8,7,10],[6,2,6,8],[10,2,10,10],[25,9,25,10],[32,6,33,7],[25,1,25,4],[30,9,30,10],[32,9,33,10],[27,2,27,4],[11,4,11,8],[22,2,22,4],[12,1,12,3],[14,1,14,3]]}
[null,null,null,null,"Post Event Submission Form"]
[null,null,null,null,"#2001-B - 3713 Kensington Ave.",null,"Ph: (604) 333-3550",null,"Website: www.bcathletics.org"]
[null,null,null,null,"Burnaby BC  V5B 0A7",null,"Fax: (604) 333-3551",null,"Email: bcathletics@bcathletics.org"]
[]
[null,"All BC Athletics sanctioned events must complete and submit this form within 1 month of the completion of  the event"]
[null,"Section 1","EVENT INFORMATION - All events must complete this section"]
[null,"Event:"," ",null,null,null,null,null,null,"Event Date:"," "]
[null,"Hosted by:",null,null,null,null,"Event Director:"]
[null,"Phone:",null,null," ","Email:"]
[]
[null,"Section 2","TOTAL EVENT DEMOGRAPHICS - All events must complete this section.  Include everyone registered in the event."]
[null,null,null,null,"For relays, count every relay team member."]
[null,"Able Bodied Athletes            Males:",null,null,0,"Females:",0,"Sub total:",{"$f":"SUM(E13 + G13)","v":0}]
[]
[null,"Athletes with a Disability      Males:",null,null,0,"Females:",0,"Sub total:",{"$f":"SUM(E15 + G15)","v":0},"Total:",{"$f":"SUM(E13 + G13 + E15 + G15)","v":0}]
[]
[null,"        If your event was a charity fundraiser how much was donated to charity?       "]
[]
[null,"        Approximately how many volunteers did it take to put on your event?",null,null,null,null,null,null,null,null,null,null,null," "]
[]
[null,"        Approximately how many BCA Officials worked at your event?",null,null,null,null,null,null,null,null,null,null,null," "]
[]
[null,"Section 3","SANCTIONED EVENT ENTRIES                      ",null,null,"Entrants in any part of the event that records results or rewards "]
[null,null,"(All sanctioned events must complete",null,null,"performance.  This should be the same as the total in Section 2 unless"]
[null,null,"this section)",null,null,"there is a component of your event that is an un-timed fun run or similar."]
[null," Total number of Sanctioned Event Entries = ",null,null,null,{"$f":"K15","v":0},null,"X $.15 =","\u008c",{"$f":"PRODUCT(F26*0.15)","v":0}]
[]
[null,"Section 4","NON-MEMBER PARTICIPANT FEES ",null,null,"▪    For events covered by BC Athletics insurance"]
[null,null,null,null,null,"▪    Include participants who are NOT athlete members of BC Athletics, "]
[null,null,null,null,null,"      another province or an IAAF member organization"]
[null,"Total number of Non-Member Participants",null,null,null,null,null,null,null,0]
[]
[null,"                                                                                                       Use the sliding scale to break out the total number of Non-Member Participants into the various Non-Member Participant Fees indicated.  Non-Member Participant Fees include liability insurance coverage.",null,null,"Sliding Scale",null,"# of Non-Member Participants",null,"Fee","Sub-Total"]
[]
[null,null,null,null,"  first 100",null,{"$f":"IF($J$31>0, IF($J$31>100, 100, $J$31), 0)","v":0},null,"x 1.75 =",{"$f":"PRODUCT(G35*1.75)","v":0}]
[null,null,null,null,"  next 150",null,{"$f":"IF($J$31>100, IF($J$31>250, 150, $J$31-100), 0)","v":0},null,"x 1.50 =",{"$f":"PRODUCT(G36*1.5)","v":0}]
[null,null,null,null,"  next 250",null,{"$f":"IF($J$31>250, IF($J$31>500, 250, $J$31-250), 0)","v":0},null,"x 1.25 =",{"$f":"PRODUCT(G37*1.25)","v":0}]
[null,null,null,null,"  next 500",null,{"$f":"IF($J$31>500, IF($J$31>1000, 500, $J$31-500), 0)","v":0},null,"x 1.00 =",{"$f":"PRODUCT(G38*1)","v":0}]
[null,null,null,null,"  next 1000",null,{"$f":"IF($J$31>1000, IF($J$31>2000, 1000, $J$31-1000), 0)","v":0},null,"x .75 =",{"$f":"PRODUCT(G39*0.75)","v":0}]
[null,null,null,null,"  next 3000",null,{"$f":"IF($J$31>2000, IF($J$31>5000, 3000, $J$31-2000), 0)","v":0},null,"x .50 =",{"$f":"PRODUCT(G40*0.5)","v":0}]
[null,null,null,null,"     5001+",null,{"$f":"IF($J$31>5000, $J$31-5000, 0)","v":0},null,"x .25 =",{"$f":"PRODUCT(G41*0.25)","v":0}]
[]
[null,null,null,"Non-Member Participant Fees     \u008d   ",null,null,null,null,null,{"$f":"SUM(J35:K41)","v":0}]
[]
[]
[null,"Section 5","TOTAL FEES DUE",null,null,"Sanctioned Event Entries Fees = \u008c",null,null,null,{"$f":"J26","v":0}]
[]
[null,null,null,null,null,"Non-Member Participant Fees = \u008d",null,null,null,{"$f":"J43","v":0}]
[]
[null,null,null,null,null,null,"  Sub Total    ",null,null,{"$f":"SUM(J46 + J48)","v":0}]
[]
[null,null,null,null,null,null,"GST (5%) - GST# 127293264",null,null,{"$f":"PRODUCT(J50*5%)","v":0}]
[]
[null,null,null,null,null,null,"Total Fees Due",null,null,{"$f":"SUM(J50 + J52)","v":0}]
[]
[null,"Payment Information:",null,null,null,null,null,null,"(payable to BC Athletics)"]
[]
[null,"Card #:",null,null,null,null,null,null,"Exp. Date:"]
[]
[null,"Signature:",null,null,null,null,null,null,"Amount:",{"$f":"J54","v":0}]
[]
[null,"Card Name:",null,null,null,null,null,null,null,"Mar 21 16"]